[Event "3rd Memorial Warakomska 2019"]
[Site "Suwalki"]
[Date "2019.08.11"]
[Round "8.5"]
[White "Stupak, Kirill"]
[Black "Caspi, Israel"]
[Result "1/2-1/2"]
[ECO "A80"]
[WhiteElo "2560"]
[BlackElo "2458"]
[Annotator "ChessBase"]
[PlyCount "96"]
[EventDate "2019.08.05"]
[EventType "swiss"]
[EventCountry "POL"]
[SourceTitle "playchess.com"]
[Source "ChessBase"]
[SourceQuality "1"]
[TimeControl "40/5400+30:1800+30"]

1. d4 {[%emt 0:03:17]} f5 {[%emt 0:00:00]} 2. Nc3 {[%emt 0:00:20]} Nf6 {[%emt 0:00:17]} 3. Bg5 {[%emt 0:00:15]} d5 {[%emt 0:00:10]} 4. Bxf6 {[%emt 0:00:03]} exf6 {[%emt 0:00:08]} 5. e3 {[%emt 0:00:02]} Be6 {[%emt 0:00:20]} 6. Qf3 {[%emt 0:00:09]} Qd7 {[%emt 0:02:09]} 7. Bd3 {[%emt 0:01:57]} Nc6 {[%emt 0:00:40]} 8. a3 {[%emt 0:01:38]} O-O-O {[%emt 0:02:01]} 9. Nge2 {[%emt 0:07:02]} g6 {[%emt 0:01:25]} 10. h3 {[%emt 0:03:50]} h5 {[%emt 0:02:48]} 11. Nf4 {[%emt 0:07:59]} Bf7 {[%emt 0:00:11]} 12. Bb5 {[%emt 0:00:29]} Kb8 {[%emt 0:15:21]} 13. Ba4 {[%emt 0:12:01]} h4 {[%emt 0:12:34]} 14. Nd3 {[%emt 0:01:09]} Qd6 {[%emt 0:06:38]} 15. Qe2 {[%emt 0:14:03]} Re8 {[%emt 0:11:01]} 16. O-O-O {[%emt 0:11:51]} Qe6 {[%emt 0:15:09]} 17. Nf4 {[%emt 0:21:46]} Qd6 {[%emt 0:03:03]} 18. Nd3 {[%emt 0:00:01]} Qe6 {[%emt 0:00:36]} 19. Nc5 {[%emt 0:01:59]} Bxc5 {[%emt 0:00:18]} 20. dxc5 {[%emt 0:00:01]} d4 {[%emt 0:02:38]} 21. Bxc6 {[%emt 0:00:04]} Qxc6 {[%emt 0:00:12]} 22. Rxd4 {[%emt 0:00:04]} Qxg2 {[%emt 0:02:10]} 23. Rhd1 {[%emt 0:00:01]} Qc6 {[%emt 0:00:51]} 24. Qb5 {[%emt 0:01:47]} Qxb5 25. Nxb5 {[%emt 0:00:01]} Be6 {[%emt 0:07:19]} 26. Rg1 {[%emt 0:08:24]} g5 {[%emt 0:01:05]} 27. Kd2 {[%emt 0:00:38]} Rd8 {[%emt 0:01:44]} 28. Ke2 {[%emt 0:01:53]} a6 {[%emt 0:01:34]} 29. Rxd8+ {[%emt 0:00:05]} Rxd8 {[%emt 0:00:10]} 30. Nd4 {[%emt 0:00:03]} Bc4+ {[%emt 0:00:26]} 31. Kd2 {[%emt 0:00:37]} Be6 {[%emt 0:06:25]} 32. Ke2 {[%emt 0:00:05]} Bc8 {[%emt 0:00:48]} 33. c3 {[%emt 0:00:10]} Re8 {[%emt 0:01:55]} 34. Kd2 {[%emt 0:00:40]} Bd7 {[%emt 0:00:54]} 35. b4 {[%emt 0:00:21]} Kc8 {[%emt 0:00:12]} 36. a4 {[%emt 0:02:37]} Kd8 {[%emt 0:01:42]} 37. b5 {[%emt 0:00:20]} axb5 {[%emt 0:00:21]} 38. axb5 {[%emt 0:00:01]} Ke7 {[%emt 0:01:13]} 39. f4 {[%emt 0:00:03]} Rg8 {[%emt 0:01:00]} 40. c6 {[%emt 0:00:00]} bxc6 41. bxc6 {[%emt 0:01:37]} Be6 {[%emt 0:01:59]} 42. Nf3 {[%emt 0:03:17]} Bd5 {[%emt 0:03:23]} 43. Ke2 {[%emt 0:05:11]} Bc4+ {[%emt 0:14:07]} 44. Ke1 {[%emt 0:10:05]} Ra8 {[%emt 0:00:53]} 45. Nd4 {[%emt 0:01:22]} Ra1+ {[%emt 0:00:33]} 46. Kf2 {[%emt 0:00:03]} Ra2+ {[%emt 0:00:28]} 47. Ke1 {[%emt 0:00:03]} Ra1+ {[%emt 0:10:52]} 48. Kf2 {[%emt 0:00:04]} Ra2+ {[%emt 0:00:45]} 1/2-1/2

[Event "3rd Memorial Warakomska 2019"]
[Site "Suwalki"]
[Date "2019.08.11"]
[Round "8.6"]
[White "Cukrowski, Filip"]
[Black "Nasuta, Grzegorz"]
[Result "0-1"]
[ECO "C01"]
[WhiteElo "2421"]
[BlackElo "2529"]
[Annotator "ChessBase"]
[PlyCount "62"]
[EventDate "2019.08.05"]
[EventType "swiss"]
[EventCountry "POL"]
[SourceTitle "playchess.com"]
[Source "ChessBase"]
[SourceQuality "1"]
[TimeControl "40/5400+30:1800+30"]

1. e4 {[%emt 0:01:02]} e6 {[%emt 0:00:00]} 2. d4 {[%emt 0:06:43]} d5 {[%emt 0:00:30]} 3. exd5 {[%emt 0:00:47]} exd5 {[%emt 0:00:09]} 4. Bd3 {[%emt 0:00:03]} Nc6 {[%emt 0:04:44]} 5. Ne2 {[%emt 0:09:15]} Nf6 {[%emt 0:06:07]} 6. Bg5 {[%emt 0:03:59]} Be6 {[%emt 0:03:59]} 7. c3 {[%emt 0:07:24]} h6 {[%emt 0:12:18]} 8. Bh4 {[%emt 0:05:47]} Be7 {[%emt 0:16:58]} 9. Nd2 {[%emt 0:02:37]} Qd7 {[%emt 0:05:14]} 10. Qc2 {[%emt 0:06:48]} g5 {[%emt 0:07:31]} 11. Bg3 {[%emt 0:00:12]} Nh5 {[%emt 0:00:05]} 12. O-O-O {[%emt 0:04:41]} f5 {[%emt 0:17:13]} 13. h4 {[%emt 0:06:39]} O-O-O {[%emt 0:01:07]} 14. hxg5 {[%emt 0:16:19]} hxg5 {[%emt 0:00:08]} 15. f4 {[%emt 0:01:41]} Bd6 {[%emt 0:01:37]} 16. Bh2 {[%emt 0:01:24]} gxf4 {[%emt 0:01:13]} 17. Rhf1 {[%emt 0:02:44]} Ng3 {[%emt 0:04:07]} 18. Bxg3 {[%emt 0:00:49]} fxg3 {[%emt 0:00:01]} 19. Nf4 {[%emt 0:02:14]} Bxf4 {[%emt 0:02:30]} 20. Rxf4 {[%emt 0:00:06]} Qd6 {[%emt 0:00:04]} 21. Rdf1 {[%emt 0:01:54]} Ne7 {[%emt 0:00:04]} 22. Nb3 {[%emt 0:05:21]} Kb8 {[%emt 0:02:12]} 23. R4f3 {[%emt 0:02:30]} Bc8 {[%emt 0:01:29]} 24. Qd2 {[%emt 0:00:55]} Rh2 {[%emt 0:02:08]} 25. Re1 {[%emt 0:01:40]} Ng6 {[%emt 0:04:25]} 26. Qg5 {[%emt 0:00:06]} Nh4 {[%emt 0:00:51]} 27. Rfe3 {[%emt 0:05:54]} Nxg2 {[%emt 0:01:01]} 28. Re8 {[%emt 0:01:36]} Nxe1 {[%emt 0:00:24]} 29. Rxd8 {[%emt 0:00:05]} Nxd3+ {[%emt 0:00:06]} 30. Kb1 {[%emt 0:00:48]} Rh1+ {[%emt 0:00:46]} 31. Kc2 {[%emt 0:00:09]} Ne1+ {[%emt 0:00:03]} 0-1

[Event "3rd Memorial Warakomska 2019"]
[Site "Suwalki"]
[Date "2019.08.11"]
[Round "8.7"]
[White "Czarnota, Pawel"]
[Black "Goluch, Piotr"]
[Result "1/2-1/2"]
[ECO "B12"]
[WhiteElo "2534"]
[BlackElo "2386"]
[Annotator "ChessBase"]
[PlyCount "51"]
[EventDate "2019.08.05"]
[EventType "swiss"]
[EventCountry "POL"]
[SourceTitle "playchess.com"]
[Source "ChessBase"]
[SourceQuality "1"]
[TimeControl "40/5400+30:1800+30"]

1. e4 {[%emt 0:00:00]} c6 {[%emt 0:00:00]} 2. d4 {[%emt 0:00:04]} d5 {[%emt 0:00:00]} 3. e5 {[%emt 0:00:28]} Bf5 {[%emt 0:00:00]} 4. Nf3 {[%emt 0:00:38]} e6 {[%emt 0:00:00]} 5. Be2 {[%emt 0:00:23]} Ne7 {[%emt 0:00:00]} 6. O-O {[%emt 0:00:19]} c5 {[%emt 0:00:00]} 7. Be3 {[%emt 0:08:19]} Nec6 {[%emt 0:04:55]} 8. dxc5 {[%emt 0:10:36]} Nd7 {[%emt 0:00:30]} 9. c4 {[%emt 0:09:11]} Bxc5 {[%emt 0:02:55]} 10. cxd5 {[%emt 0:02:55]} exd5 {[%emt 0:01:21]} 11. Bxc5 {[%emt 0:07:56]} Nxc5 {[%emt 0:00:05]} 12. Nc3 {[%emt 0:00:41]} Be4 {[%emt 0:13:16]} 13. Rc1 {[%emt 0:09:38]} O-O {[%emt 0:06:40]} 14. Nxe4 {[%emt 0:04:13]} Nxe4 {[%emt 0:00:58]} 15. Qb3 {[%emt 0:00:07]} Qd7 {[%emt 0:14:21]} 16. Rfd1 {[%emt 0:03:10]} Rfd8 {[%emt 0:05:15]} 17. Bb5 {[%emt 0:02:28]} a6 {[%emt 0:13:03]} 18. Bxc6 {[%emt 0:04:45]} bxc6 {[%emt 0:00:04]} 19. Qa4 {[%emt 0:02:17]} c5 {[%emt 0:01:41]} 20. Qxd7 Rxd7 {[%emt 0:00:02]} 21. Ne1 {[%emt 0:12:54]} Rc8 {[%emt 0:02:35]} 22. Nc2 {[%emt 0:01:12]} Rcd8 {[%emt 0:09:15]} 23. h4 {[%emt 0:08:09]} c4 {[%emt 0:05:51]} 24. Nb4 {[%emt 0:00:42]} Nc5 {[%emt 0:00:06]} 25. b3 {[%emt 0:04:12]} Rb8 {[%emt 0:08:21]} 26. Nxd5 {[%emt 0:06:51]} 1/2-1/2

[Event "3rd Memorial Warakomska 2019"]
[Site "Suwalki"]
[Date "2019.08.11"]
[Round "8.8"]
[White "Dhulipalla Bala Chandra Prasad"]
[Black "Shyam, Sundar M."]
[Result "0-1"]
[ECO "A40"]
[WhiteElo "2419"]
[BlackElo "2520"]
[Annotator "ChessBase"]
[PlyCount "82"]
[EventDate "2019.08.05"]
[EventType "swiss"]
[EventCountry "POL"]
[SourceTitle "playchess.com"]
[Source "ChessBase"]
[SourceQuality "1"]
[TimeControl "40/5400+30:1800+30"]

1. d4 {[%emt 0:00:00]} g6 {[%emt 0:00:00]} 2. c4 {[%emt 0:00:27]} Bg7 {[%emt 0:00:17]} 3. g3 {[%emt 0:00:41]} c5 {[%emt 0:01:24]} 4. dxc5 {[%emt 0:07:08]} Qa5+ {[%emt 0:05:04]} 5. Nc3 {[%emt 0:10:05]} Qxc5 {[%emt 0:01:51]} 6. Nd5 {[%emt 0:20:00]} Na6 {[%emt 0:17:05]} 7. Qb3 {[%emt 0:03:56]} Nf6 {[%emt 0:06:57]} 8. Be3 {[%emt 0:05:33]} Qa5+ {[%emt 0:00:40]} 9. Bd2 {[%emt 0:00:31]} Qd8 {[%emt 0:00:07]} 10. Bg2 {[%emt 0:12:29]} Nxd5 {[%emt 0:04:03]} 11. cxd5 {[%emt 0:05:48]} O-O {[%emt 0:00:21]} 12. Nh3 {[%emt 0:07:32]} Nc5 {[%emt 0:24:21]} 13. Qb4 {[%emt 0:03:36]} Qb6 {[%emt 0:00:59]} 14. O-O {[%emt 0:03:15]} d6 {[%emt 0:08:07]} 15. Qh4 {[%emt 0:04:28]} Qxb2 {[%emt 0:01:22]} 16. Be3 {[%emt 0:04:26]} Qxe2 {[%emt 0:09:21]} 17. Nf4 {[%emt 0:01:18]} Qg4 {[%emt 0:01:28]} 18. Qxe7 {[%emt 0:00:11]} Qd7 {[%emt 0:00:19]} 19. Qh4 {[%emt 0:02:07]} Bxa1 {[%emt 0:06:15]} 20. Rxa1 {[%emt 0:00:05]} Qd8 {[%emt 0:00:02]} 21. Qh6 {[%emt 0:01:44]} Qf6 {[%emt 0:00:03]} 22. Rc1 {[%emt 0:01:17]} Qg7 {[%emt 0:00:38]} 23. Qxg7+ {[%emt 0:00:08]} Kxg7 {[%emt 0:00:02]} 24. Bd4+ {[%emt 0:00:28]} Kg8 {[%emt 0:00:23]} 25. Bxc5 {[%emt 0:00:14]} dxc5 {[%emt 0:00:02]} 26. Rxc5 {[%emt 0:00:21]} Rd8 {[%emt 0:01:25]} 27. h4 {[%emt 0:01:13]} Kf8 {[%emt 0:01:18]} 28. Bf3 {[%emt 0:01:28]} Ke7 {[%emt 0:00:35]} 29. Rc7+ {[%emt 0:00:12]} Rd7 {[%emt 0:00:13]} 30. Rc3 {[%emt 0:01:13]} Kd6 {[%emt 0:00:07]} 31. Ne2 {[%emt 0:01:12]} Rc7 {[%emt 0:00:35]} 32. Ra3 {[%emt 0:01:23]} Bd7 {[%emt 0:00:20]} 33. g4 {[%emt 0:00:20]} f5 {[%emt 0:01:35]} 34. g5 {[%emt 0:00:23]} Rc4 {[%emt 0:00:26]} 35. Rb3 {[%emt 0:01:07]} b5 {[%emt 0:00:12]} 36. Kg2 {[%emt 0:00:41]} a5 {[%emt 0:00:19]} 37. Kg3 {[%emt 0:00:23]} a4 {[%emt 0:00:07]} 38. Rb1 {[%emt 0:00:16]} b4 {[%emt 0:00:48]} 39. Nf4 {[%emt 0:00:07]} Rb8 {[%emt 0:00:10]} 40. h5 {[%emt 0:00:00]} gxh5 {[%emt 0:00:00]} 41. Rh1 {[%emt 0:03:57]} Ke5 0-1

[Event "3rd Memorial Warakomska 2019"]
[Site "Suwalki"]
[Date "2019.08.11"]
[Round "8.9"]
[White "Jakubowski, Krzysztof"]
[Black "Hnydiuk, Aleksander"]
[Result "1/2-1/2"]
[ECO "A11"]
[WhiteElo "2528"]
[BlackElo "2412"]
[Annotator "ChessBase"]
[PlyCount "110"]
[EventDate "2019.08.05"]
[EventType "swiss"]
[EventCountry "POL"]
[SourceTitle "playchess.com"]
[Source "ChessBase"]
[SourceQuality "1"]
[TimeControl "40/5400+30:1800+30"]

1. c4 {[%emt 0:00:39]} c6 2. d4 {[%emt 0:02:50]} d5 {[%emt 0:05:30]} 3. e3 {[%emt 0:00:07]} Nf6 {[%emt 0:00:04]} 4. Nc3 {[%emt 0:00:08]} a6 {[%emt 0:00:13]} 5. Bd2 {[%emt 0:01:12]} dxc4 {[%emt 0:04:11]} 6. Bxc4 {[%emt 0:00:13]} e6 {[%emt 0:00:13]} 7. Qf3 {[%emt 0:21:35]} Nbd7 {[%emt 0:19:07]} 8. Nge2 {[%emt 0:07:00]} Bd6 {[%emt 0:14:49]} 9. Ng3 {[%emt 0:12:36]} O-O {[%emt 0:00:35]} 10. Rd1 {[%emt 0:05:16]} e5 {[%emt 0:12:12]} 11. Nce4 {[%emt 0:03:08]} exd4 {[%emt 0:03:10]} 12. O-O {[%emt 0:14:24]} Bxg3 {[%emt 0:24:44]} 13. Nxf6+ {[%emt 0:01:11]} Qxf6 {[%emt 0:00:27]} 14. Qxg3 {[%emt 0:01:03]} Nb6 {[%emt 0:00:20]} 15. Bb3 {[%emt 0:01:03]} Be6 {[%emt 0:01:44]} 16. Bb4 {[%emt 0:00:22]} Bxb3 {[%emt 0:01:48]} 17. axb3 {[%emt 0:00:06]} dxe3 {[%emt 0:08:12]} 18. fxe3 {[%emt 0:00:28]} Qg6 {[%emt 0:00:17]} 19. Qxg6 {[%emt 0:00:40]} hxg6 {[%emt 0:00:04]} 20. Bxf8 {[%emt 0:00:06]} Kxf8 {[%emt 0:00:03]} 21. Rd4 {[%emt 0:00:50]} Nd5 {[%emt 0:00:36]} 22. e4 {[%emt 0:00:41]} Nf6 {[%emt 0:00:15]} 23. Rfd1 {[%emt 0:10:12]} Ke7 {[%emt 0:00:28]} 24. g4 {[%emt 0:00:07]} g5 {[%emt 0:01:49]} 25. h4 {[%emt 0:00:24]} c5 {[%emt 0:00:56]} 26. Rd6 {[%emt 0:03:14]} gxh4 {[%emt 0:00:21]} 27. g5 {[%emt 0:04:02]} Nxe4 {[%emt 0:00:06]} 28. Rd7+ {[%emt 0:00:05]} Ke6 {[%emt 0:00:05]} 29. g6 {[%emt 0:00:11]} fxg6 {[%emt 0:00:32]} 30. Rxb7 {[%emt 0:00:05]} g5 {[%emt 0:01:10]} 31. Rxg7 {[%emt 0:02:54]} Kf5 {[%emt 0:00:49]} 32. Rd5+ {[%emt 0:05:23]} Kf4 {[%emt 0:00:23]} 33. Rf7+ {[%emt 0:00:19]} Kg4 {[%emt 0:00:12]} 34. Re5 {[%emt 0:00:15]} Nd2 {[%emt 0:00:56]} 35. Re2 {[%emt 0:00:50]} Nf3+ {[%emt 0:00:18]} 36. Kf2 {[%emt 0:00:08]} Nd4 {[%emt 0:00:12]} 37. Re4+ {[%emt 0:00:09]} Kh5 {[%emt 0:00:21]} 38. b4 {[%emt 0:01:06]} Rb8 {[%emt 0:00:52]} 39. bxc5 {[%emt 0:00:41]} Rxb2+ {[%emt 0:00:04]} 40. Ke3 {[%emt 0:00:00]} Nb5 {[%emt 0:00:00]} 41. Rh7+ {[%emt 0:15:15]} Kg6 {[%emt 0:00:37]} 42. Rh8 {[%emt 0:00:09]} Rb3+ {[%emt 0:02:55]} 43. Kd2 {[%emt 0:01:25]} h3 {[%emt 0:09:16]} 44. Re3 {[%emt 0:04:46]} Rb2+ {[%emt 0:01:54]} 45. Kd3 {[%emt 0:00:16]} g4 {[%emt 0:03:33]} 46. Re1 {[%emt 0:07:46]} Kg5 {[%emt 0:04:05]} 47. c6 {[%emt 0:01:22]} h2 {[%emt 0:06:00]} 48. Rc1 {[%emt 0:03:18]} g3 {[%emt 0:02:25]} 49. Ke4 {[%emt 0:01:42]} Kg4 {[%emt 0:02:36]} 50. c7 {[%emt 0:02:01]} Nxc7 {[%emt 0:00:30]} 51. Rxc7 {[%emt 0:00:07]} Re2+ {[%emt 0:00:15]} 52. Kd3 {[%emt 0:00:17]} Re1 {[%emt 0:02:50]} 53. Rch7 {[%emt 0:00:19]} Kf3 {[%emt 0:00:44]} 54. Rxh2 {[%emt 0:00:17]} gxh2 {[%emt 0:00:04]} 55. Rxh2 {[%emt 0:00:02]} Rd1+ {[%emt 0:00:17] Ke4+} 1/2-1/2

[Event "3rd Memorial Warakomska 2019"]
[Site "Suwalki"]
[Date "2019.08.11"]
[Round "8.10"]
[White "Zakhartsov, Viacheslav V."]
[Black "Kosakowski, Jakub"]
[Result "1/2-1/2"]
[ECO "D30"]
[WhiteElo "2518"]
[BlackElo "2394"]
[Annotator "ChessBase"]
[PlyCount "68"]
[EventDate "2019.08.05"]
[EventType "swiss"]
[EventCountry "POL"]
[SourceTitle "playchess.com"]
[Source "ChessBase"]
[SourceQuality "1"]
[TimeControl "40/5400+30:1800+30"]

1. d4 {[%emt 0:00:00]} Nf6 {[%emt 0:00:00]} 2. c4 {[%emt 0:00:00]} e6 {[%emt 0:00:00]} 3. Nf3 {[%emt 0:00:00]} d5 {[%emt 0:00:35]} 4. Bg5 {[%emt 0:00:09]} Bb4+ {[%emt 0:00:38]} 5. Nc3 {[%emt 0:00:10]} h6 {[%emt 0:00:27]} 6. Bxf6 {[%emt 0:00:42]} Qxf6 {[%emt 0:00:13]} 7. Qb3 {[%emt 0:06:05]} c5 {[%emt 0:00:38]} 8. cxd5 {[%emt 0:00:05]} exd5 {[%emt 0:00:22]} 9. a3 {[%emt 0:00:14]} Bxc3+ {[%emt 0:00:20]} 10. Qxc3 {[%emt 0:00:02]} Nd7 {[%emt 0:00:14]} 11. e3 {[%emt 0:00:18]} O-O {[%emt 0:00:17]} 12. Be2 {[%emt 0:03:25]} b6 {[%emt 0:01:58]} 13. O-O {[%emt 0:04:11]} Bb7 {[%emt 0:00:22]} 14. Rfc1 {[%emt 0:10:31]} c4 {[%emt 0:08:15]} 15. b3 {[%emt 0:11:57]} b5 {[%emt 0:01:33]} 16. a4 {[%emt 0:14:12]} a6 {[%emt 0:02:09]} 17. Rab1 {[%emt 0:11:44]} Bc6 {[%emt 0:06:39]} 18. Nd2 {[%emt 0:01:17]} Qd6 {[%emt 0:11:04]} 19. bxc4 {[%emt 0:02:10]} dxc4 {[%emt 0:22:13]} 20. Bf3 {[%emt 0:03:17]} Bxf3 {[%emt 0:05:32]} 21. Nxf3 {[%emt 0:00:04]} Qc6 {[%emt 0:01:10]} 22. Rc2 {[%emt 0:08:48]} Rfc8 {[%emt 0:05:55]} 23. h3 {[%emt 0:02:10]} Rab8 {[%emt 0:02:02]} 24. Rcb2 {[%emt 0:01:45]} Nf6 {[%emt 0:13:33]} 25. Ne5 {[%emt 0:04:59]} Qe4 {[%emt 0:00:22]} 26. axb5 {[%emt 0:01:35]} axb5 {[%emt 0:00:33]} 27. Rxb5 Qxb1+ {[%emt 0:01:02]} 28. Rxb1 {[%emt 0:09:19]} Rxb1+ {[%emt 0:00:06]} 29. Kh2 {[%emt 0:00:00]} Rb3 {[%emt 0:01:43]} 30. Qc2 {[%emt 0:00:03]} Rbb8 {[%emt 0:01:02]} 31. Qa2 {[%emt 0:02:07]} Ra8 {[%emt 0:03:00]} 32. Qc2 {[%emt 0:00:03]} Rab8 {[%emt 0:01:13]} 33. Qa2 {[%emt 0:00:03]} Ra8 {[%emt 0:00:23]} 34. Qc2 {[%emt 0:00:03]} Rab8 {[%emt 0:00:18]} 1/2-1/2

[Event "3rd Memorial Warakomska 2019"]
[Site "Suwalki"]
[Date "2019.08.11"]
[Round "8.11"]
[White "Warakomski, Tomasz"]
[Black "Tihonov, Jurij"]
[Result "1-0"]
[ECO "B93"]
[WhiteElo "2497"]
[BlackElo "2393"]
[Annotator "ChessBase"]
[PlyCount "79"]
[EventDate "2019.08.05"]
[EventType "swiss"]
[EventCountry "POL"]
[SourceTitle "playchess.com"]
[Source "ChessBase"]
[SourceQuality "1"]
[TimeControl "40/5400+30:1800+30"]

1. e4 {[%emt 0:01:32]} c5 {[%emt 0:00:00]} 2. Nf3 {[%emt 0:00:04]} d6 {[%emt 0:00:00]} 3. d4 {[%emt 0:00:04]} cxd4 {[%emt 0:00:09]} 4. Nxd4 {[%emt 0:00:04]} Nf6 {[%emt 0:00:13]} 5. Nc3 {[%emt 0:00:04]} a6 {[%emt 0:00:08]} 6. f4 {[%emt 0:00:03]} e5 {[%emt 0:00:16]} 7. Nf3 {[%emt 0:00:08]} Nbd7 {[%emt 0:00:26]} 8. a4 {[%emt 0:00:18]} Be7 {[%emt 0:00:25]} 9. Bc4 {[%emt 0:03:06]} O-O {[%emt 0:00:11]} 10. O-O {[%emt 0:01:28]} Qc7 {[%emt 0:00:35]} 11. Qe2 {[%emt 0:02:14]} exf4 {[%emt 0:00:10]} 12. Bxf4 {[%emt 0:00:23]} Ne5 {[%emt 0:00:04]} 13. Bb3 {[%emt 0:06:41]} Bg4 {[%emt 0:04:19]} 14. Kh1 {[%emt 0:04:06]} Rfe8 {[%emt 0:02:19]} 15. Qf2 {[%emt 0:11:50]} Be6 {[%emt 0:18:25]} 16. Nd4 {[%emt 0:05:33]} Bxb3 {[%emt 0:00:21]} 17. cxb3 {[%emt 0:00:06]} Qc5 {[%emt 0:14:45]} 18. Rad1 {[%emt 0:13:17]} Rac8 {[%emt 0:05:38]} 19. h3 {[%emt 0:19:08]} Bf8 {[%emt 0:25:41]} 20. Bg5 {[%emt 0:14:14]} Nfd7 {[%emt 0:08:34]} 21. Nd5 {[%emt 0:00:15]} Qa7 {[%emt 0:01:05]} 22. Be3 {[%emt 0:02:08]} b6 {[%emt 0:02:07]} 23. b4 {[%emt 0:03:55]} Qb7 {[%emt 0:00:37]} 24. Nf5 {[%emt 0:02:18]} Rc4 {[%emt 0:01:40]} 25. Bd4 {[%emt 0:00:38]} g6 {[%emt 0:02:29]} 26. Nfe3 {[%emt 0:00:33]} Rcc8 {[%emt 0:00:47]} 27. Bxe5 {[%emt 0:00:31]} Nxe5 {[%emt 0:00:34]} 28. Nf6+ {[%emt 0:00:07]} Kh8 {[%emt 0:00:10]} 29. Nxe8 {[%emt 0:00:04]} Rxe8 {[%emt 0:00:04]} 30. Nd5 {[%emt 0:00:06]} b5 {[%emt 0:00:40]} 31. axb5 {[%emt 0:00:46]} axb5 {[%emt 0:00:25]} 32. Ra1 {[%emt 0:00:54]} Bg7 {[%emt 0:01:24]} 33. Qa7 {[%emt 0:01:11]} Qc8 {[%emt 0:00:37]} 34. Rac1 {[%emt 0:01:04]} Qd8 {[%emt 0:00:24]} 35. Qb7 {[%emt 0:02:08]} g5 {[%emt 0:07:22]} 36. Qc7 {[%emt 0:01:03]} Qxc7 {[%emt 0:01:05]} 37. Nxc7 {[%emt 0:01:00]} Rb8 {[%emt 0:00:04]} 38. b3 {[%emt 0:01:43]} h5 {[%emt 0:01:51]} 39. Rfd1 {[%emt 0:01:24]} Rb6 {[%emt 0:01:52]} 40. Rd5 {[%emt 0:00:00]} 1-0

[Event "3rd Memorial Warakomska 2019"]
[Site "Suwalki"]
[Date "2019.08.11"]
[Round "8.12"]
[White "Grib, Roman"]
[Black "Janik, Igor"]
[Result "1/2-1/2"]
[ECO "B40"]
[WhiteElo "2421"]
[BlackElo "2495"]
[Annotator "ChessBase"]
[PlyCount "86"]
[EventDate "2019.08.05"]
[EventType "swiss"]
[EventCountry "POL"]
[SourceTitle "playchess.com"]
[Source "ChessBase"]
[SourceQuality "1"]
[TimeControl "40/5400+30:1800+30"]

1. e4 {[%emt 0:00:00]} c5 {[%emt 0:00:00]} 2. Nf3 {[%emt 0:00:05]} e6 {[%emt 0:00:00]} 3. g3 {[%emt 0:00:56]} Nf6 {[%emt 0:00:15]} 4. e5 {[%emt 0:01:20]} Nd5 {[%emt 0:00:08]} 5. Bg2 {[%emt 0:00:18]} Nc6 {[%emt 0:01:13]} 6. O-O {[%emt 0:00:13]} Be7 {[%emt 0:00:22]} 7. Re1 {[%emt 0:04:04]} O-O {[%emt 0:00:23]} 8. Nc3 {[%emt 0:14:07]} Nxc3 {[%emt 0:01:39]} 9. dxc3 {[%emt 0:00:03]} d5 {[%emt 0:00:09]} 10. exd6 {[%emt 0:02:51]} Bxd6 {[%emt 0:01:00]} 11. Ng5 {[%emt 0:01:56]} Be7 {[%emt 0:02:13]} 12. Qh5 {[%emt 0:11:49]} h6 {[%emt 0:01:29]} 13. Nf3 {[%emt 0:07:01]} Qe8 {[%emt 0:03:00]} 14. Ne5 {[%emt 0:19:14]} Nxe5 {[%emt 0:03:09]} 15. Qxe5 {[%emt 0:00:05]} f6 {[%emt 0:12:34]} 16. Qe2 {[%emt 0:01:31]} a5 {[%emt 0:05:03]} 17. Be4 {[%emt 0:11:17]} Ra6 {[%emt 0:02:57]} 18. Bd3 {[%emt 0:00:19]} Rb6 {[%emt 0:00:26]} 19. Bf4 {[%emt 0:10:06]} g5 {[%emt 0:04:51]} 20. Bc7 {[%emt 0:07:53]} Rxb2 {[%emt 0:00:26]} 21. Rab1 {[%emt 0:00:15]} Rxb1 {[%emt 0:01:57]} 22. Rxb1 {[%emt 0:00:03]} a4 {[%emt 0:01:38]} 23. Bc4 {[%emt 0:02:35]} Qd7 {[%emt 0:07:32]} 24. Ba5 {[%emt 0:01:52]} Bd6 {[%emt 0:01:31]} 25. Bb5 {[%emt 0:01:19]} Qe7 {[%emt 0:00:32]} 26. Bxa4 {[%emt 0:00:12]} Bc7 {[%emt 0:00:58]} 27. Bxc7 {[%emt 0:00:45]} Qxc7 {[%emt 0:00:04]} 28. Bb3 {[%emt 0:00:18]} Kg7 {[%emt 0:00:45]} 29. Rd1 {[%emt 0:00:19]} Qc6 {[%emt 0:01:50]} 30. Bc4 {[%emt 0:00:34]} Bd7 {[%emt 0:05:27]} 31. Rd2 {[%emt 0:01:35]} Rf7 {[%emt 0:02:06]} 32. Qd1 {[%emt 0:00:22]} b5 {[%emt 0:03:20]} 33. Rd6 {[%emt 0:00:40]} Qe4 {[%emt 0:00:01]} 34. Rxd7 {[%emt 0:00:22]} Qxc4 {[%emt 0:00:06]} 35. Rxf7+ {[%emt 0:00:13]} Kxf7 {[%emt 0:00:01]} 36. Qd7+ {[%emt 0:00:28]} Kg6 {[%emt 0:00:15]} 37. Qc6 {[%emt 0:00:57]} Qxa2 {[%emt 0:02:00]} 38. Qxc5 {[%emt 0:00:30]} Qxc2 {[%emt 0:01:35]} 39. Qxb5 {[%emt 0:00:25]} Qc1+ {[%emt 0:00:22]} 40. Kg2 {[%emt 0:00:00]} Qxc3 {[%emt 0:00:00]} 41. Qe8+ {[%emt 0:00:19]} Kf5 {[%emt 0:00:21]} 42. Qh5 {[%emt 0:02:06]} Qc6+ {[%emt 0:00:53]} 43. Kg1 {[%emt 0:01:24]} Qc1+ {[%emt 0:01:25]} 1/2-1/2